bitfinex/quotes_BTCUSD_20260308
["timestamp","ask_amount","ask_price","bid_price","bid_amount"]
[1772957045403,0.04053397,67306.0,67296.0,0.001]
[1772957045608,0.04053397,67306.0,67295.0,0.07429862]
[1772957045932,0.04053397,67306.0,67296.0,0.001]
[1772957046184,0.04053397,67306.0,67295.0,0.07429862]
[1772957047466,0.04053397,67306.0,67295.0,0.07529862]
[1772957048351,0.04053397,67306.0,67295.0,0.08847186]
[1772957048708,0.00022001,67311.0,67295.0,0.07529862]
[1772957048914,0.00022001,67311.0,67298.0,0.01317324]
[1772957049139,1e-08,67311.0,67300.0,0.01317324]
[1772957049415,1e-08,67311.0,67302.0,0.01317324]
[1772957050663,0.00039911,67311.0,67302.0,0.01317324]
[1772957051257,0.00039911,67311.0,67302.0,0.01417324]
[1772957051529,0.00039911,67311.0,67303.0,0.08746413]
[1772957051998,0.00039911,67311.0,67303.0,0.07429089]
[1772957055054,0.07468139,67311.0,67296.0,0.07429862]
[1772957055254,0.013459,67309.0,67301.0,0.00148]
[1772957055535,0.013459,67305.0,67298.0,0.07429641]
[1772957055964,0.013459,67305.0,67299.0,0.00148]
[1772957056761,0.05399297,67305.0,67300.0,0.00148]
[1772957057062,0.05399297,67305.0,67298.0,0.07429641]
[1772957057240,0.07428334,67310.0,67298.0,0.03347557]
[1772957057424,0.013459,67309.0,67300.0,0.0742942]
[1772957057597,0.013459,67307.0,67300.0,0.03401244]
[1772957058036,0.013459,67307.0,67300.0,0.03253244]
[1772957058337,0.013459,67307.0,67300.0,0.03401244]
[1772957058548,0.013459,67307.0,67300.0,0.03253244]
[1772957058842,0.013459,67307.0,67300.0,0.03401244]
[1772957059042,0.013459,67307.0,67300.0,0.03253244]
[1772957059240,0.013459,67307.0,67300.0,0.03411504]
[1772957059569,0.013459,67307.0,67300.0,0.0001026]
[1772957059732,0.013459,67307.0,67300.0,0.0015826]
[1772957061614,0.07468214,67311.0,67300.0,0.0015826]
[1772957061766,0.07468214,67311.0,67301.0,0.0742931]
[1772957063259,0.00022001,67307.0,67301.0,0.0742931]
[1772957068526,0.00022001,67307.0,67301.0,0.09482753]
[1772957070315,0.00039911,67311.0,67303.0,0.04037102]
[1772957070527,0.00039911,67311.0,67305.0,0.02053111]
[1772957071213,0.00039911,67311.0,67301.0,0.0742931]
[1772957071824,0.07428316,67310.0,67301.0,0.0742931]
[1772957072199,0.07428316,67310.0,67302.0,0.00148]
[1772957072972,0.07468176,67311.0,67302.0,0.00148]
[1772957075815,0.07468176,67311.0,67303.0,0.07429089]
[1772957083769,0.00039911,67311.0,67303.0,0.07429089]
[1772957084054,0.00022001,67312.0,67303.0,0.07429089]
[1772957084404,0.14802902,67316.0,67303.0,0.07429089]
[1772957084405,0.07449448,67318.0,67308.0,0.02050692]
[1772957084548,0.07449448,67318.0,67308.0,0.02198692]
[1772957085126,0.07449448,67318.0,67309.0,0.07428427]
[1772957085325,0.07449448,67318.0,67309.0,0.09479119]
[1772957086634,0.07449448,67318.0,67310.0,0.02050049]
[1772957086838,0.00022001,67321.0,67310.0,0.02050049]
[1772957087058,0.00022001,67321.0,67312.0,0.02050049]
[1772957087265,0.00022001,67321.0,67314.0,0.02050049]
[1772957087849,0.00022001,67321.0,67314.0,0.02198049]
[1772957089194,0.00022001,67321.0,67315.0,0.07427764]
[1772957089748,0.07449112,67321.0,67314.0,0.07427789]
[1772957091097,0.00022001,67321.0,67314.0,0.07427789]
[1772957091467,0.00022001,67321.0,67314.0,0.07447789]
[1772957091877,0.07449164,67321.0,67314.0,0.07447789]
[1772957096164,0.07449164,67321.0,67313.0,0.00148]
[1772957096708,0.07449164,67321.0,67314.0,0.07427789]
[1772957100213,0.07449164,67321.0,67303.0,0.01508244]
[1772957100214,0.00669743,67320.0,67303.0,0.01508244]
[1772957100406,0.0417757,67317.0,67304.0,0.07428978]
[1772957100589,0.00669703,67316.0,67304.0,0.07428978]
[1772957101455,0.00148,67319.0,67304.0,0.07428978]
[1772957101658,0.07575433,67318.0,67305.0,0.01468334]
[1772957103564,0.07575433,67318.0,67306.0,0.07428758]
[1772957103854,0.04044721,67316.0,67302.0,0.0002]
[1772957104017,0.0072634,67313.0,67303.0,0.07429089]
[1772957104174,0.0087434,67312.0,67303.0,0.03167258]
[1772957104373,0.0087434,67312.0,67301.0,0.07429232]
[1772957104807,0.0087434,67312.0,67300.0,0.07459605]
[1772957105008,0.04192721,67312.0,67300.0,0.0003026]
[1772957105206,0.00778517,67311.0,67300.0,0.0003026]
[1772957105596,0.07428316,67310.0,67295.0,0.0002]
[1772957105800,0.07428316,67310.0,67289.0,0.0002]
[1772957105801,0.00804282,67306.0,67290.0,0.07430513]
[1772957105996,0.00804282,67304.0,67290.0,0.07430513]
[1772957107006,0.00804782,67303.0,67298.0,0.0002]
[1772957107218,0.00804782,67301.0,67298.0,0.0002]
[1772957107798,0.0742942,67300.0,67298.0,0.0002]
[1772957108152,0.00952172,67299.0,67298.0,0.0002]
[1772957108697,0.00952172,67299.0,67291.0,0.0002]
[1772957108901,0.00952172,67299.0,67289.0,0.0002]
[1772957111070,0.07428917,67305.0,67289.0,0.0002]
[1772957111365,0.00148,67307.0,67290.0,0.05461162]
[1772957111594,0.00148,67307.0,67291.0,0.00148]
[1772957111933,0.00148,67307.0,67294.0,0.03922618]
[1772957112128,0.00148,67307.0,67297.0,0.01538544]
[1772957112567,0.00148,67307.0,67292.0,0.01538544]
[1772957112750,0.00148,67307.0,67293.0,0.01538544]
[1772957112967,0.00148,67307.0,67293.0,0.05461162]
[1772957113146,0.00148,67307.0,67294.0,0.07430082]
[1772957113506,0.00148,67307.0,67294.0,0.08968626]
[1772957113838,0.00148,67307.0,67294.0,0.113527]
[1772957114057,0.00148,67307.0,67297.0,0.01538544]
[1772957114256,0.00148,67307.0,67299.0,0.05461162]
[1772957114873,0.00148,67307.0,67299.0,0.03922618]
[1772957115415,0.00148,67307.0,67300.0,0.0742942]
[1772957115772,0.00015,67308.0,67300.0,0.0742942]
[1772957115972,0.00163,67308.0,67300.0,0.0742942]
[1772957120042,0.002151,67308.0,67300.0,0.0742942]
[1772957120217,0.002151,67308.0,67300.0,0.0744942]
[1772957121032,0.002151,67308.0,67300.0,0.0002]
[1772957123830,0.07643704,67308.0,67296.0,0.07429805]
[1772957124354,0.04044721,67307.0,67293.0,0.0745017]
[1772957125011,0.04096821,67307.0,67293.0,0.0745017]
[1772957127167,0.07428758,67306.0,67293.0,0.0002]
[1772957137832,0.0416982,67305.0,67293.0,0.0002]
[1772957138033,0.0420971,67305.0,67293.0,0.0002]
[1772957138223,0.0003989,67305.0,67293.0,0.0002]
[1772957139844,0.07429089,67303.0,67293.0,0.0002]
[1772957140059,0.07468979,67303.0,67293.0,0.0002]
[1772957148045,0.07468979,67303.0,67289.0,0.07450539]
[1772957148254,0.01440173,67302.0,67289.0,0.07450539]
[1772957149080,0.0742931,67301.0,67289.0,0.0002]
[1772957149300,0.074692,67301.0,67289.0,0.0002]
[1772957149505,0.08909373,67301.0,67289.0,0.0002]
[1772957150351,0.08909373,67301.0,67293.0,0.0002]
[1772957152087,0.01440173,67300.0,67293.0,0.0002]
[1772957152316,0.01480063,67300.0,67293.0,0.0002]
[1772957153364,0.0003989,67300.0,67293.0,0.0002]
[1772957156818,0.0742953,67299.0,67293.0,0.0002]
[1772957157019,0.00148,67298.0,67293.0,0.0002]
[1772957157327,0.01440173,67297.0,67289.0,1e-08]
[1772957157739,0.01440173,67297.0,67286.0,0.0002]
[1772957157740,0.01440173,67296.0,67286.0,1e-08]
[1772957158290,0.01467853,67296.0,67286.0,1e-08]
[1772957159301,0.01440173,67294.0,67286.0,1e-08]
[1772957160314,0.01467853,67294.0,67286.0,1e-08]
[1772957160518,0.01507738,67294.0,67286.0,1e-08]
[1772957161642,0.07430193,67293.0,67286.0,1e-08]
[1772957161838,0.00148,67292.0,67286.0,1e-08]
[1772957162550,0.01516958,67292.0,67286.0,1e-08]
[1772957163746,0.07430414,67291.0,67286.0,1e-08]
[1772957164115,0.08799372,67291.0,67286.0,1e-08]
[1772957164320,0.08814842,67291.0,67286.0,1e-08]
[1772957165424,0.0001221,67300.0,67288.0,0.04014646]
[1772957165663,0.07577537,67299.0,67291.0,0.01409279]
[1772957165861,0.07577537,67299.0,67292.0,0.01409279]
[1772957169033,0.07577537,67299.0,67289.0,0.08926962]
[1772957169635,0.07577537,67299.0,67288.0,0.00011948]
[1772957171003,0.07599538,67299.0,67288.0,0.00011948]
[1772957171210,0.09053198,67299.0,67288.0,0.00011948]
[1772957172406,0.07599538,67299.0,67288.0,0.00011948]
[1772957174446,0.07599538,67299.0,67288.0,0.01508346]
[1772957174667,0.07599538,67299.0,67288.0,0.05522992]
[1772957174930,0.00148,67298.0,67290.0,0.04014646]
[1772957175084,0.0744174,67300.0,67288.0,0.00011948]
[1772957175085,0.03398297,67300.0,67292.0,0.01496398]
[1772957175280,0.07577618,67299.0,67292.0,0.01496398]
[1772957175851,0.00148,67298.0,67292.0,0.01496398]
[1772957176055,0.07429618,67299.0,67292.0,0.01496398]
[1772957176375,0.00148,67298.0,67292.0,0.01496398]
[1772957176952,0.00148,67298.0,67291.0,0.0003141]
[1772957177978,0.04072222,67295.0,67291.0,0.0003141]
[1772957178615,0.07430082,67294.0,67291.0,0.0003141]
[1772957179975,0.11502204,67295.0,67291.0,0.0003141]
[1772957182081,0.04072222,67295.0,67291.0,0.0003141]
[1772957182408,0.07429838,67297.0,67291.0,0.0003141]
[1772957183803,0.00022001,67295.0,67291.0,0.0003141]
[1772957184807,0.04094223,67295.0,67291.0,0.0003141]
[1772957185148,0.00022001,67295.0,67291.0,0.0003141]
[1772957186422,0.0406594,67294.0,67289.0,0.07430624]
[1772957187587,0.00022001,67295.0,67288.0,0.00011948]
[1772957192332,0.00022001,67295.0,67288.0,0.00031948]
[1772957194923,0.00022001,67295.0,67289.0,0.07430635]
[1772957197214,0.1185638,67311.0,67290.0,0.01644398]
[1772957197416,0.04099429,67312.0,67292.0,0.01496398]
[1772957197838,0.04099429,67311.0,67292.0,0.01496398]
[1772957198039,0.04099429,67310.0,67292.0,0.01496398]
[1772957198270,0.07598046,67313.0,67292.0,0.01496398]
[1772957198478,0.01636022,67309.0,67293.0,0.00148]
[1772957198689,0.04099429,67307.0,67293.0,0.00148]
[1772957198884,0.04247429,67307.0,67293.0,0.00148]
[1772957199789,0.04247429,67307.0,67294.0,0.07430082]
[1772957200164,0.04247429,67307.0,67295.0,0.01630992]
[1772957201284,0.00022001,67299.0,67295.0,0.01630992]
[1772957202791,0.00022001,67306.0,67296.0,0.07429862]
[1772957203014,0.00022001,67313.0,67296.0,0.07429862]
[1772957203155,0.07438753,67328.0,67296.0,0.07454642]
[1772957203359,0.07426772,67324.0,67296.0,0.07454642]
[1772957203578,0.07426772,67324.0,67310.0,0.01630992]
[1772957203782,0.07426772,67324.0,67312.0,0.01630992]
[1772957204625,0.07426992,67322.0,67313.0,0.07427985]
[1772957205799,0.07574992,67322.0,67313.0,0.09058977]
[1772957206422,0.07426992,67322.0,67313.0,0.09058977]
[1772957207758,0.07448993,67322.0,67313.0,0.09058977]
[1772957208520,0.07448993,67322.0,67305.0,0.00148]
[1772957208521,0.04099429,67319.0,67305.0,0.00148]
[1772957208723,0.04099429,67315.0,67305.0,0.00148]
[1772957208927,0.04099429,67315.0,67304.0,0.07441258]
[1772957209139,0.07427875,67314.0,67304.0,0.07441258]
[1772957209341,0.04099429,67313.0,67299.0,0.07429461]
[1772957209540,0.04099429,67311.0,67299.0,0.07429449]
[1772957209752,0.04099429,67311.0,67300.0,0.00148]
[1772957210948,0.04099429,67311.0,67299.0,0.07577449]
[1772957210949,0.04099429,67310.0,67299.0,0.07577449]
[1772957211148,0.04099429,67310.0,67297.0,0.0742953]
[1772957211149,0.07428427,67309.0,67297.0,0.0742953]
[1772957211367,0.11527856,67309.0,67298.0,0.00148]
[1772957211766,0.11527856,67309.0,67299.0,0.00148]
[1772957213950,0.11527856,67309.0,67300.0,0.0742942]
[1772957214638,0.11549857,67309.0,67300.0,0.0742942]
[1772957215635,0.11549857,67309.0,67300.0,0.0692942]
[1772957221843,0.11549857,67309.0,67300.0,0.0694942]
[1772957227272,0.0412143,67309.0,67300.0,0.0694942]
[1772957227923,0.00022001,67309.0,67300.0,0.08510277]
[1772957228655,0.00148,67315.0,67303.0,0.01638016]
[1772957228979,0.09082912,67322.0,67307.0,0.0409847]
[1772957228980,0.00022001,67322.0,67307.0,0.0409847]
[1772957229173,0.07466694,67325.0,67310.0,0.01638016]
[1772957229292,0.07466694,67325.0,67311.0,0.01638016]
[1772957229496,0.07466694,67325.0,67312.0,0.01638016]
[1772957229904,0.07468551,67324.0,67312.0,0.01638016]
[1772957230533,0.0744891,67323.0,67314.0,0.01638016]
[1772957230748,0.0744891,67323.0,67316.0,0.01638016]
[1772957230913,0.00022001,67323.0,67316.0,0.01638016]
[1772957232562,0.00022001,67323.0,67317.0,0.07427544]
[1772957232563,0.07448897,67323.0,67317.0,0.07427544]
[1772957234127,0.00022001,67323.0,67317.0,0.07427544]
[1772957235618,0.00022001,67323.0,67317.0,0.0906556]
[1772957236075,0.07448119,67330.0,67318.0,0.01638016]
[1772957236307,0.00027331,67329.0,67318.0,0.01638016]
[1772957236645,0.07453563,67329.0,67318.0,0.01638016]
[1772957237582,0.07453563,67329.0,67319.0,0.07427323]
[1772957237823,0.07453563,67329.0,67319.0,0.09065339]
[1772957238762,0.04015176,67328.0,67319.0,0.07427323]
[1772957240924,0.07426441,67327.0,67316.0,0.07427654]
[1772957241429,0.04042507,67329.0,67316.0,0.07427654]
[1772957241605,0.11468749,67329.0,67316.0,0.0906567]
[1772957242022,0.07453573,67329.0,67317.0,0.01638016]
[1772957242975,0.07453573,67329.0,67318.0,0.07427433]
[1772957243782,0.07453573,67329.0,67318.0,0.09065449]
[1772957246689,0.07601573,67329.0,67318.0,0.09065449]
[1772957248325,0.07601573,67329.0,67318.0,0.07427433]
[1772957248629,0.07601573,67329.0,67319.0,0.01638016]
[1772957249814,0.07601573,67329.0,67320.0,0.07427213]
[1772957250004,0.04015176,67328.0,67320.0,0.07427213]
[1772957251017,0.07426371,67328.0,67315.0,0.07575654]
[1772957251217,0.01633862,67326.0,67316.0,0.07427654]
[1772957251415,0.05649038,67326.0,67316.0,0.07427654]
[1772957254704,0.07601644,67329.0,67316.0,0.07427654]
[1772957255536,0.00175331,67329.0,67316.0,0.07427654]
[1772957255726,0.00175331,67329.0,67317.0,0.01638016]
[1772957255950,0.07601561,67329.0,67317.0,0.01638016]
[1772957256151,0.0001479,67332.0,67319.0,0.01638016]
[1772957256352,0.0001479,67332.0,67322.0,0.04257119]
[1772957256529,0.0001479,67332.0,67323.0,0.01638016]
[1772957256730,0.0001479,67332.0,67324.0,0.07426772]
[1772957256932,0.0001479,67332.0,67325.0,0.01638016]
[1772957257231,0.00022001,67337.0,67325.0,0.01638016]
[1772957257461,0.00022001,67343.0,67328.0,0.04257119]
[1772957257660,0.00022001,67343.0,67331.0,0.01638016]
[1772957258900,0.00022001,67343.0,67332.0,0.07425889]
[1772957259254,0.00022001,67343.0,67332.0,0.07436929]
[1772957260815,0.07446713,67343.0,67327.0,0.07426365]
[1772957261006,0.07446713,67343.0,67311.0,0.29626968]
[1772957261007,0.01580088,67341.0,67321.0,0.0016396]
[1772957261231,0.07446713,67343.0,67321.0,0.0016396]
[1772957261232,0.01580088,67337.0,67321.0,0.0016396]
[1772957261435,0.03904602,67334.0,67321.0,0.0001596]
[1772957261605,0.01580088,67331.0,67321.0,0.0016396]
[1772957261807,0.0548469,67331.0,67321.0,0.0001596]
[1772957261982,0.03904602,67330.0,67321.0,0.0001596]
[1772957262378,0.01580088,67329.0,67321.0,0.0001596]
[1772957262992,0.01580088,67329.0,67321.0,0.07443062]
[1772957263432,0.03904602,67330.0,67321.0,0.07443062]
[1772957263729,0.03904602,67330.0,67321.0,0.07543062]
[1772957263882,0.03904602,67330.0,67321.0,0.07443062]
[1772957264828,0.07425913,67332.0,67321.0,0.07443062]
[1772957265438,0.0900591,67333.0,67321.0,0.07443062]
[1772957267145,0.12910512,67333.0,67321.0,0.07443062]
[1772957267746,0.0900591,67333.0,67321.0,0.07443062]
[1772957267947,0.12910512,67333.0,67321.0,0.07443062]
[1772957269954,0.12932513,67333.0,67321.0,0.07443062]
[1772957271203,0.12932513,67333.0,67324.0,0.00015]
[1772957279092,0.07447823,67333.0,67324.0,0.00015]
[1772957287571,0.07447823,67333.0,67314.0,0.0002]
[1772957287572,0.03578233,67330.0,67314.0,0.0002]
[1772957287787,0.03578233,67326.0,67314.0,0.07447779]
[1772957287992,0.0535797,67325.0,67314.0,0.07447779]
[1772957288620,0.07426772,67324.0,67314.0,0.07447779]
[1772957293735,0.05159909,67322.0,67314.0,0.0002]
[1772957296143,0.12586923,67322.0,67314.0,0.0002]
[1772957297149,0.11005247,67322.0,67314.0,0.0002]
[1772957297648,0.07427014,67322.0,67314.0,0.0002]
[1772957297834,0.05159909,67321.0,67313.0,0.07427943]
[1772957298317,0.03578233,67321.0,67313.0,0.07427943]
[1772957298516,0.07427014,67322.0,67313.0,0.07427943]
[1772957299861,0.05159909,67321.0,67313.0,0.07427943]
[1772957300355,0.03578233,67321.0,67313.0,0.07427943]
[1772957301871,0.11005376,67321.0,67312.0,0.07575875]
[1772957302572,0.11005376,67321.0,67313.0,0.0002]
[1772957303957,0.11005376,67321.0,67312.0,0.07575875]
[1772957303958,0.07427143,67321.0,67312.0,0.07575875]
[1772957304150,0.05159909,67320.0,67312.0,0.07575875]
[1772957304311,0.05144689,67320.0,67312.0,0.07575875]
[1772957304513,0.07427323,67319.0,67312.0,0.07575875]
[1772957305914,0.07427102,67323.0,67313.0,0.00148]
[1772957306247,0.03578233,67320.0,67313.0,0.00148]
[1772957307427,0.07427102,67323.0,67313.0,0.00148]
[1772957307638,0.03578233,67322.0,67313.0,0.00148]
[1772957308841,0.07427102,67321.0,67313.0,0.07575899]
[1772957311365,0.07427102,67321.0,67313.0,0.07595899]
[1772957315046,0.05013988,67320.0,67313.0,0.07447983]
[1772957316155,0.12441293,67320.0,67313.0,0.07447983]
[1772957317468,0.12441293,67320.0,67313.0,0.0002]
[1772957317469,0.10859617,67320.0,67313.0,0.0002]
[1772957318541,0.07427305,67320.0,67313.0,0.0002]
[1772957319220,0.07427305,67320.0,67313.0,0.00168]
[1772957319556,0.07427305,67320.0,67313.0,0.0002]
[1772957319762,0.07427305,67320.0,67313.0,0.00168]
[1772957321061,0.07427305,67320.0,67313.0,0.0002]
[1772957321208,0.07427305,67320.0,67313.0,0.00168]
[1772957321647,0.12377883,67320.0,67313.0,0.00168]
[1772957322044,0.12377883,67320.0,67313.0,0.0002]
[1772957322467,0.07425394,67337.0,67315.0,0.01476149]
[1772957322616,0.00030886,67335.0,67322.0,0.01476149]
[1772957322982,0.00030886,67335.0,67324.0,0.01476149]
[1772957323175,0.07425394,67337.0,67324.0,0.01476149]
[1772957323371,0.07467477,67339.0,67324.0,0.01485034]
[1772957323528,0.04950578,67338.0,67325.0,0.19291319]
[1772957323730,0.04950578,67338.0,67325.0,0.07574661]
[1772957325371,0.03432312,67338.0,67325.0,0.07574661]
[1772957325557,0.01518266,67334.0,67325.0,0.07574661]
[1772957325761,0.01518266,67332.0,67325.0,0.07574661]
[1772957325968,0.01518266,67332.0,67318.0,0.07427358]
[1772957325969,0.01518266,67330.0,67321.0,0.19291679]
[1772957326147,0.01518266,67329.0,67321.0,0.07427021]
[1772957331700,0.08944513,67329.0,67321.0,0.07427021]
[1772957333625,0.08966514,67329.0,67321.0,0.07427021]
[1772957339641,0.07448248,67329.0,67321.0,0.07427021]
[1772957341347,0.07448248,67329.0,67321.0,0.0002]
[1772957341565,0.07448248,67329.0,67321.0,0.00168]
[1772957342211,0.07448233,67329.0,67321.0,0.00168]
[1772957344706,0.00022001,67329.0,67321.0,0.07594995]
[1772957346047,0.07448221,67329.0,67321.0,0.07594995]
[1772957350186,0.00022001,67329.0,67321.0,0.07594995]
[1772957350367,0.00022001,67329.0,67321.0,0.07621485]
[1772957353978,0.07448264,67329.0,67321.0,0.07621485]
[1772957355063,0.00022001,67329.0,67321.0,0.07621485]
[1772957355511,0.00022001,67329.0,67321.0,0.09120755]
[1772957368881,0.04791706,67328.0,67321.0,0.07621485]
[1772957369669,0.01527165,67327.0,67319.0,0.00148]
[1772957369877,0.03264541,67326.0,67319.0,0.00148]
[1772957371453,0.01534269,67327.0,67319.0,0.00148]
[1772957371655,7.104e-05,67327.0,67320.0,0.07427213]
[1772957382613,7.104e-05,67327.0,67320.0,0.07447213]
[1772957383042,0.00029105,67327.0,67320.0,0.07447213]
[1772957384033,0.00029105,67327.0,67320.0,0.06612757]
[1772957384407,0.00029105,67327.0,67312.0,0.01540573]
[1772957384408,0.01475027,67323.0,67293.0,0.0002]
[1772957384569,0.01475027,67323.0,67265.0,0.01506937]
[1772957384570,0.490268,67303.0,67275.0,0.01560573]
[1772957384860,0.11868714,67289.0,67276.0,0.04669007]
[1772957385040,0.14845118,67288.0,67276.0,0.03330575]
[1772957385243,0.14845118,67288.0,67275.0,0.0747207]
[1772957385244,0.14845118,67287.0,67277.0,0.00148]
[1772957385439,0.14845118,67286.0,67278.0,0.00148]
[1772957385739,0.14845118,67285.0,67278.0,0.00148]
[1772957385938,0.14861418,67286.0,67278.0,0.00148]
[1772957386144,0.000163,67286.0,67278.0,0.00148]
[1772957386320,0.000163,67286.0,67279.0,0.07431739]
[1772957386745,0.01475027,67287.0,67279.0,0.07431739]
[1772957389470,0.01475027,67287.0,67279.0,0.03027115]
[1772957390250,0.01475027,67287.0,67279.0,0.02341632]
[1772957390566,0.01475027,67287.0,67279.0,0.02127732]
[1772957391361,0.01475027,67287.0,67279.0,0.02147732]
[1772957398219,0.01460027,67287.0,67279.0,0.02147732]
[1772957402051,0.08890918,67287.0,67279.0,0.02147732]
[1772957403810,0.07430891,67287.0,67279.0,0.02147732]
[1772957404559,0.07452892,67287.0,67279.0,0.02147732]
[1772957405861,0.07452892,67287.0,67279.0,0.02159691]
[1772957409107,0.07413705,67287.0,67279.0,0.02159691]
[1772957412856,0.03660829,67285.0,67275.0,0.00036991]
[1772957413006,0.01733923,67283.0,67274.0,0.07432277]
[1772957413324,0.01733923,67283.0,67274.0,0.07444225]
[1772957413532,0.22185398,67282.0,67270.0,0.07432726]
[1772957413728,0.03660829,67278.0,67267.0,0.07432992]
[1772957413895,0.01730683,67276.0,67267.0,0.07432992]
[1772957414087,0.1475399,67275.0,67267.0,0.07432992]
[1772957414311,0.01730683,67276.0,67267.0,0.07432992]
[1772957414312,0.1475399,67274.0,67267.0,0.07432992]
[1772957414623,0.1475399,67273.0,67267.0,0.07432992]
[1772957414828,0.1475399,67272.0,67267.0,0.07432992]
[1772957415032,0.01730683,67276.0,67267.0,0.07432992]
[1772957415207,0.14829773,67275.0,67267.0,0.07432992]
[1772957415440,0.14829773,67274.0,67267.0,0.07432992]
[1772957415599,0.14829773,67273.0,67266.0,0.07433142]
[1772957415946,0.14829735,67274.0,67266.0,0.07433142]
[1772957416124,0.14814735,67274.0,67266.0,0.07433142]
[1772957417351,0.07432255,67275.0,67266.0,0.07433142]
[1772957417507,0.07432255,67275.0,67267.0,0.0002]
[1772957418775,0.07432255,67275.0,67265.0,0.07453286]
[1772957418776,0.07432255,67275.0,67265.0,0.0002]
[1772957418933,0.01712307,67274.0,67265.0,0.0002]
[1772957420094,0.07432402,67273.0,67265.0,0.0002]
[1772957420297,0.00148,67272.0,67265.0,0.0002]
[1772957423204,0.0758052,67272.0,67265.0,0.0002]
[1772957426598,0.01680011,67271.0,67260.0,0.07471728]
[1772957427185,0.07432733,67270.0,67260.0,0.07471728]
[1772957429660,0.07432733,67270.0,67260.0,0.09141207]
[1772957430637,0.07432623,67271.0,67260.0,0.09141207]
[1772957431586,0.08773422,67271.0,67260.0,0.09141207]
[1772957433290,0.08773453,67271.0,67260.0,0.09141207]
[1772957435118,0.08773453,67271.0,67260.0,0.07471728]
[1772957435350,0.08773453,67271.0,67261.0,0.01669479]
[1772957437623,0.08773453,67271.0,67262.0,0.07433617]
[1772957445275,0.08773453,67271.0,67262.0,0.07453617]
[1772957447176,0.08773453,67271.0,67262.0,0.07476747]
[1772957451457,0.07432568,67272.0,67262.0,0.07476747]
[1772957452568,0.00022001,67271.0,67262.0,0.07476747]
[1772957454250,0.07432733,67270.0,67262.0,0.07476747]
[1772957460505,0.07432733,67270.0,67262.0,0.07472747]
[1772957463575,0.01655139,67269.0,67262.0,0.07472747]
[1772957465155,0.00022001,67271.0,67262.0,0.07472747]
[1772957465583,0.07454643,67271.0,67262.0,0.07472747]
[1772957465962,0.07454643,67271.0,67262.0,0.09120236]
[1772957466910,0.00998369,67277.0,67264.0,0.04101846]
[1772957467054,0.00998369,67277.0,67267.0,0.01647489]
[1772957467263,0.00170001,67281.0,67262.0,0.07620747]
[1772957467264,0.00170001,67281.0,67270.0,0.04101846]
[1772957467465,0.00022001,67281.0,67272.0,0.09080001]
[1772957468533,0.00022001,67278.0,67272.0,0.09080001]
[1772957472625,0.00022001,67278.0,67272.0,0.07432512]
[1772957473913,0.00022001,67285.0,67271.0,0.07432512]
[1772957473914,0.07453092,67285.0,67271.0,0.04101846]
[1772957474117,0.09162489,67285.0,67270.0,0.07444481]
[1772957475208,0.09162489,67285.0,67271.0,0.002]
[1772957475604,0.09162489,67285.0,67271.0,0.01767384]
[1772957476111,0.09158489,67285.0,67272.0,0.09099896]
[1772957476324,0.00148,67284.0,67272.0,0.09099896]
[1772957477431,0.00022001,67287.0,67278.0,0.01667384]
[1772957477644,0.00022001,67287.0,67279.0,0.01667384]
[1772957478033,0.00022001,67287.0,67280.0,0.07431629]
[1772957478661,0.00022001,67287.0,67280.0,0.09099013]
[1772957488222,0.07429536,67299.0,67280.0,0.07431629]
[1772957488501,0.00148,67296.0,67285.0,0.01667384]
[1772957488939,0.00148,67297.0,67285.0,0.01667384]
[1772957489086,0.00148,67297.0,67286.0,0.07430966]
[1772957490045,0.00022001,67294.0,67286.0,0.07430966]
[1772957492627,0.00022001,67294.0,67286.0,0.0909835]
[1772957493111,0.00148,67299.0,67288.0,0.01667384]
[1772957493311,0.00148,67299.0,67289.0,0.09098019]
[1772957493746,0.0004,67300.0,67289.0,0.09246019]
[1772957494259,0.0004,67300.0,67290.0,0.01667384]
[1772957494943,0.0004,67300.0,67290.0,0.04163985]
[1772957495117,0.0004,67300.0,67291.0,0.01667384]
[1772957495317,0.0004,67300.0,67292.0,0.07430303]
[1772957495518,0.0004,67300.0,67291.0,0.07430303]
[1772957495691,0.0746945,67300.0,67291.0,0.07430303]
[1772957495891,0.0004,67300.0,67291.0,0.07430303]
[1772957496295,0.00101914,67300.0,67291.0,0.07430303]
[1772957498983,0.0001701,67304.0,67292.0,0.04163985]
[1772957499275,0.00148,67309.0,67297.0,0.01559401]
[1772957499474,0.00148,67310.0,67299.0,0.04163985]
[1772957499799,0.00148,67310.0,67300.0,0.01559401]
[1772957499955,0.00148,67311.0,67300.0,0.01559401]
[1772957500151,0.0001701,67313.0,67300.0,0.01559401]
[1772957500941,0.0001701,67313.0,67302.0,0.01559401]
[1772957500942,0.00015,67308.0,67302.0,0.01559401]
[1772957502988,0.0016501,67313.0,67304.0,0.01559401]
[1772957503192,0.0001701,67313.0,67304.0,0.01559401]
[1772957503596,0.0001701,67313.0,67304.0,0.01707401]
[1772957504999,0.0001701,67313.0,67305.0,0.07428868]
[1772957507856,8.07e-05,67313.0,67305.0,0.07428868]
[1772957511173,0.00030071,67313.0,67305.0,0.07428868]
[1772957512198,0.00030071,67313.0,67305.0,0.08988269]
[1772957520312,0.00026071,67313.0,67305.0,0.08988269]
[1772957521709,0.00026071,67313.0,67305.0,0.07428868]
[1772957522712,0.00026071,67313.0,67306.0,0.01658715]
[1772957524203,0.00148,67318.0,67306.0,0.01658715]
[1772957524458,0.00022001,67329.0,67312.0,0.04226261]
[1772957524642,0.00170001,67327.0,67313.0,0.01806715]
[1772957525795,0.00022001,67320.0,67313.0,0.01806715]
[1772957526345,0.00022001,67320.0,67313.0,0.01906715]
[1772957526592,0.00022001,67320.0,67314.0,0.07427875]
[1772957526894,0.00022001,67320.0,67315.0,0.01658715]
[1772957528397,0.00015,67324.0,67315.0,0.01658715]
[1772957528763,0.00015,67324.0,67316.0,0.09020282]
[1772957530353,0.00015,67324.0,67317.0,0.01592628]
[1772957531025,0.00015,67324.0,67318.0,0.07427433]
[1772957531775,0.00015,67324.0,67319.0,0.01592628]
[1772957532862,0.00015,67324.0,67320.0,0.07427213]
[1772957533421,0.00037001,67324.0,67320.0,0.07427213]
[1772957533638,0.00037001,67324.0,67321.0,0.01592628]
[1772957533854,0.00037001,67324.0,67321.0,0.01575887]
[1772957534416,0.00037001,67324.0,67320.0,0.07427213]
[1772957535009,0.00037001,67324.0,67319.0,0.0742724]
[1772957535211,0.00037001,67324.0,67320.0,0.01592628]
[1772957535648,0.00037001,67324.0,67319.0,0.0742724]
[1772957537135,0.00037001,67324.0,67318.0,0.07427433]
[1772957546190,0.00037001,67324.0,67318.0,0.07447433]
[1772957550365,0.00037001,67324.0,67318.0,0.09040061]
[1772957556919,0.00037001,67324.0,67318.0,0.07447433]
[1772957557115,0.00037001,67324.0,67319.0,0.01592628]
[1772957558698,0.00037001,67324.0,67320.0,0.07427213]
[1772957559721,0.00037001,67324.0,67320.0,0.09057362]